[Event "11th Arad Open 2018"]
[Site "Arad"]
[Date "2018.08.11"]
[Round "8"]
[White "Daianu, Cristian-Clement"]
[Black "Vasiesiu, Victor"]
[Result "0-1"]
[ECO "C05"]
[WhiteElo "2166"]
[BlackElo "2297"]
[Annotator "NA"]
[PlyCount "88"]
[EventDate "2018.08.05"]
[EventType "swiss"]
[EventCountry "ROU"]
[SourceTitle "playchess.com"]
[Source "ChessBase"]
[SourceQuality "1"]
[TimeControl "40/5400+30:1800+30"]

1. e4 {[%emt 0:00:00]} e6 {[%emt 0:00:00]} 2. d4 {[%emt 0:00:00]} d5 {[%emt 0:00:00]} 3. Nd2 {[%emt 0:00:04]} Nf6 {[%emt 0:00:00]} 4. e5 {[%emt 0:00:21]} Nfd7 {[%emt 0:00:02]} 5. Bd3 {[%emt 0:00:06]} c5 {[%emt 0:00:07]} 6. c3 {[%emt 0:00:05]} Nc6 {[%emt 0:00:05]} 7. Ngf3 {[%emt 0:01:41]} g5 {[%emt 0:00:13]} 8. h3 {[%emt 0:31:07]} h6 {[%emt 0:00:20]} 9. O-O {[%emt 0:02:31]} h5 {[%emt 0:00:06]} 10. c4 {[%emt 0:01:54]} Be7 {[%emt 0:01:06]} 11. Re1 {[%emt 0:17:34]} Nf8 {[%emt 0:00:07]} 12. dxc5 {[%emt 0:12:53]} g4 {[%emt 0:05:19]} 13. Nh2 {[%emt 0:04:04]} Bxc5 {[%emt 0:11:31]} 14. Nb3 {[%emt 0:02:04]} Bb6 {[%emt 0:14:52]} 15. c5 {[%emt 0:05:04]} Bc7 {[%emt 0:00:05]} 16. Bf4 {[%emt 0:00:34]} f6 {[%emt 0:04:34]} 17. Qd2 {[%emt 0:15:30]} fxe5 {[%emt 0:03:40]} 18. Bg5 {[%emt 0:00:05]} Qd7 {[%emt 0:00:08]} 19. Bb5 {[%emt 0:00:57]} Qf7 {[%emt 0:04:19]} 20. hxg4 {[%emt 0:02:46]} Bd7 {[%emt 0:04:56]} 21. f4 {[%emt 0:00:23]} e4 {[%emt 0:06:27]} 22. Bxc6 {[%emt 0:00:27]} bxc6 {[%emt 0:02:06]} 23. Nd4 {[%emt 0:00:39]} Nh7 {[%emt 0:03:57]} 24. Bh6 {[%emt 0:00:06]} Qf6 {[%emt 0:05:37]} 25. Qc3 {[%emt 0:00:54]} Rg8 {[%emt 0:04:31]} 26. g5 {[%emt 0:00:34]} Qxf4 {[%emt 0:00:58]} 27. Nf1 {[%emt 0:00:21]} Nxg5 {[%emt 0:00:39]} 28. Bxg5 {[%emt 0:00:13]} Qxg5 {[%emt 0:00:20]} 29. Qh3 {[%emt 0:00:52]} Qg4 {[%emt 0:02:47]} 30. Qxg4 {[%emt 0:00:24]} Rxg4 {[%emt 0:00:20]} 31. b4 {[%emt 0:00:12]} a5 {[%emt 0:08:50]} 32. Ne3 {[%emt 0:00:16]} Rg5 {[%emt 0:00:43]} 33. b5 {[%emt 0:00:21]} Be5 {[%emt 0:02:25]} 34. Nec2 {[%emt 0:01:19]} cxb5 {[%emt 0:01:48]} 35. c6 {[%emt 0:00:04]} Bxc6 {[%emt 0:05:25]} 36. Nxc6 {[%emt 0:00:05]} Bxa1 {[%emt 0:00:07]} 37. Nxa1 {[%emt 0:00:06]} Kd7 {[%emt 0:03:39]} 38. Nd4 {[%emt 0:00:11]} Rag8 {[%emt 0:00:50]} 39. Re2 {[%emt 0:00:06]} b4 {[%emt 0:00:13]} 40. Nab3 {[%emt 0:00:00]} e5 {[%emt 0:00:00]} 41. Nc2 {[%emt 0:16:01]} d4 {[%emt 0:23:31]} 42. Nc5+ {[%emt 0:04:21]} Kc6 {[%emt 0:00:07]} 43. Nxe4 {[%emt 0:01:25]} d3 {[%emt 0:00:05]} 44. Nxg5 {[%emt 0:00:03]} Rxg5 {[%emt 0:00:05]} 0-1

[Event "11th Arad Open 2018"]
[Site "Arad"]
[Date "2018.08.11"]
[Round "8"]
[White "Kutnik, Alexandru-Francisc"]
[Black "Patrascu, Catalin-Lucian"]
[Result "1-0"]
[ECO "D01"]
[WhiteElo "1986"]
[BlackElo "2286"]
[Annotator "NA"]
[PlyCount "65"]
[EventDate "2018.08.05"]
[EventType "swiss"]
[EventCountry "ROU"]
[SourceTitle "playchess.com"]
[Source "ChessBase"]
[SourceQuality "1"]
[TimeControl "40/5400+30:1800+30"]

1. d4 {[%emt 0:00:00]} Nf6 {[%emt 0:00:00]} 2. Nc3 {[%emt 0:00:00]} d5 {[%emt 0:03:53]} 3. Bg5 {[%emt 0:00:00]} g6 {[%emt 0:04:46]} 4. Bxf6 {[%emt 0:00:00]} exf6 {[%emt 0:00:03]} 5. e3 {[%emt 0:00:00]} c6 {[%emt 0:00:36]} 6. Bd3 {[%emt 0:00:09]} Bd6 {[%emt 0:00:40]} 7. h4 {[%emt 0:00:48]} h5 {[%emt 0:02:05]} 8. Nge2 {[%emt 0:02:08]} f5 {[%emt 0:02:23]} 9. Qd2 {[%emt 0:02:46]} Nd7 {[%emt 0:03:14]} 10. O-O-O {[%emt 0:00:04]} Nf6 {[%emt 0:10:32]} 11. f3 {[%emt 0:00:03]} Qc7 {[%emt 0:08:40]} 12. Kb1 {[%emt 0:03:00]} Bd7 {[%emt 0:07:22]} 13. Rc1 {[%emt 0:05:35]} b5 {[%emt 0:12:25]} 14. Nd1 {[%emt 0:00:44]} O-O {[%emt 0:01:30]} 15. Nf2 {[%emt 0:00:25]} Rfe8 {[%emt 0:02:52]} 16. Nh3 {[%emt 0:00:38]} Re7 {[%emt 0:10:08]} 17. Nef4 {[%emt 0:00:29]} Rae8 {[%emt 0:00:23]} 18. Rce1 {[%emt 0:00:14]} c5 {[%emt 0:00:50]} 19. c3 {[%emt 0:00:23]} c4 {[%emt 0:01:33]} 20. Bc2 {[%emt 0:00:13]} b4 {[%emt 0:00:11]} 21. cxb4 {[%emt 0:18:45]} Rb8 {[%emt 0:01:38]} 22. a3 {[%emt 0:04:03]} a5 {[%emt 0:01:24]} 23. b5 {[%emt 0:00:14]} Rxb5 {[%emt 0:03:59]} 24. Ka2 {[%emt 0:00:38]} Qb8 {[%emt 0:10:54]} 25. Rb1 {[%emt 0:01:55]} Be8 {[%emt 0:04:08]} 26. Rhc1 {[%emt 0:02:20]} Reb7 {[%emt 0:02:17]} 27. Bd1 {[%emt 0:05:55]} Bxa3 {[%emt 0:02:38]} 28. Kxa3 {[%emt 0:00:46]} Rb3+ {[%emt 0:00:08]} 29. Bxb3 {[%emt 0:06:22]} Rxb3+ {[%emt 0:00:05]} 30. Ka2 {[%emt 0:00:08]} Qb5 {[%emt 0:00:08]} 31. Ra1 {[%emt 0:00:15]} Ra3+ {[%emt 0:00:48]} 32. Kb1 {[%emt 0:00:33]} c3 {[%emt 0:01:13]} 33. Rxc3 {[%emt 0:00:51]} 1-0

[Event "11th Arad Open 2018"]
[Site "Arad"]
[Date "2018.08.11"]
[Round "8"]
[White "Isfan, Ioan-Marius"]
[Black "Scripcaru, George-Daniel"]
[Result "1/2-1/2"]
[ECO "D02"]
[WhiteElo "1933"]
[BlackElo "2177"]
[Annotator "NA"]
[PlyCount "71"]
[EventDate "2018.08.05"]
[EventType "swiss"]
[EventCountry "ROU"]
[SourceTitle "playchess.com"]
[Source "ChessBase"]
[SourceQuality "1"]
[TimeControl "40/5400+30:1800+30"]

1. d4 {[%emt 0:00:00]} d5 {[%emt 0:00:00]} 2. Nf3 {[%emt 0:00:00]} Nf6 {[%emt 0:00:01]} 3. c4 {[%emt 0:00:00]} c6 {[%emt 0:00:07]} 4. Qc2 {[%emt 0:00:42]} e6 {[%emt 0:02:25]} 5. Nbd2 {[%emt 0:01:22]} Bd6 {[%emt 0:05:25]} 6. e4 {[%emt 0:00:58]} dxe4 {[%emt 0:00:22]} 7. Nxe4 {[%emt 0:00:05]} Nxe4 {[%emt 0:01:42]} 8. Qxe4 {[%emt 0:00:08]} Nd7 {[%emt 0:02:42]} 9. Qc2 {[%emt 0:02:30]} e5 {[%emt 0:05:13]} 10. Bd3 {[%emt 0:04:59]} Bb4+ {[%emt 0:01:29]} 11. Bd2 {[%emt 0:02:08]} Bxd2+ {[%emt 0:00:07]} 12. Nxd2 {[%emt 0:02:00]} exd4 {[%emt 0:02:18]} 13. O-O {[%emt 0:01:29]} Nc5 {[%emt 0:05:43]} 14. b4 {[%emt 0:01:17]} Nxd3 {[%emt 0:00:23]} 15. Qxd3 {[%emt 0:00:04]} O-O {[%emt 0:00:28]} 16. Nb3 {[%emt 0:05:23]} Bg4 {[%emt 0:04:11]} 17. h3 {[%emt 0:06:38]} Bh5 {[%emt 0:01:01]} 18. Nxd4 {[%emt 0:00:27]} Qd7 {[%emt 0:04:05]} 19. Qc3 {[%emt 0:01:01]} Rad8 {[%emt 0:00:30]} 20. Nb3 {[%emt 0:00:12]} b6 {[%emt 0:05:47]} 21. Rfe1 {[%emt 0:01:47]} Rfe8 {[%emt 0:03:07]} 22. c5 {[%emt 0:09:20]} f6 {[%emt 0:13:52]} 23. Rxe8+ {[%emt 0:03:16]} Bxe8 {[%emt 0:01:37]} 24. Qe3 {[%emt 0:08:15]} b5 {[%emt 0:14:07]} 25. Re1 {[%emt 0:27:09]} Bf7 {[%emt 0:00:08]} 26. Qe7 {[%emt 0:01:12]} Qxe7 {[%emt 0:02:49]} 27. Rxe7 {[%emt 0:00:04]} Bxb3 {[%emt 0:00:14]} 28. axb3 {[%emt 0:00:03]} Rd1+ {[%emt 0:00:09]} 29. Kh2 {[%emt 0:00:03]} Rd3 {[%emt 0:00:10]} 30. Rxa7 {[%emt 0:00:14]} Rxb3 {[%emt 0:00:06]} 31. Rc7 {[%emt 0:00:06]} Rxb4 {[%emt 0:00:05]} 32. Rxc6 {[%emt 0:00:03]} Rc4 {[%emt 0:00:13]} 33. Rc7 {[%emt 0:00:06]} h5 {[%emt 0:01:50]} 34. g3 {[%emt 0:05:35]} b4 {[%emt 0:01:31]} 35. Rb7 {[%emt 0:00:53]} Rxc5 {[%emt 0:00:12]} 36. Rxb4 {[%emt 0:00:05]} 1/2-1/2

[Event "11th Arad Open 2018"]
[Site "Arad"]
[Date "2018.08.12"]
[Round "9"]
[White "Georgiev, Kiril"]
[Black "Stany, G.A."]
[Result "1/2-1/2"]
[ECO "D03"]
[WhiteElo "2593"]
[BlackElo "2494"]
[Annotator "ChessBase"]
[PlyCount "98"]
[EventDate "2018.08.05"]
[EventType "swiss"]
[EventCountry "ROU"]
[SourceTitle "playchess.com"]
[Source "ChessBase"]
[SourceQuality "1"]
[TimeControl "40/5400+30:1800+30"]

1. d4 {[%emt 0:06:51]} Nf6 {[%emt 0:00:00]} 2. Nf3 {[%emt 0:00:05]} g6 {[%emt 0:00:00]} 3. c3 {[%emt 0:00:43]} Bg7 {[%emt 0:00:37]} 4. Bg5 {[%emt 0:00:07]} d5 {[%emt 0:13:45]} 5. Nbd2 {[%emt 0:02:30]} O-O {[%emt 0:03:02]} 6. e3 {[%emt 0:00:11]} Nbd7 {[%emt 0:00:15]} 7. b4 {[%emt 0:00:19]} Re8 {[%emt 0:01:47]} 8. Be2 {[%emt 0:00:18]} e5 {[%emt 0:04:03]} 9. O-O {[%emt 0:03:58]} c6 {[%emt 0:03:25]} 10. Bh4 {[%emt 0:03:47]} Qe7 {[%emt 0:04:12]} 11. a3 {[%emt 0:03:43]} Qf8 {[%emt 0:06:41]} 12. Bg3 {[%emt 0:06:46]} Ne4 {[%emt 0:19:19]} 13. Nxe4 {[%emt 0:00:39]} dxe4 {[%emt 0:00:04]} 14. Ng5 {[%emt 0:12:35]} h6 {[%emt 0:00:47]} 15. Nxe4 {[%emt 0:13:38]} f5 {[%emt 0:00:07]} 16. Nd2 {[%emt 0:00:06]} f4 {[%emt 0:00:17]} 17. Bh4 {[%emt 0:01:58]} exd4 {[%emt 0:06:26]} 18. exf4 {[%emt 0:03:23]} dxc3 {[%emt 0:02:42]} 19. Nc4 {[%emt 0:00:59]} Nb6 {[%emt 0:20:45]} 20. Ne5 {[%emt 0:02:07]} Bf5 {[%emt 0:02:54]} 21. Qd4 {[%emt 0:11:52]} g5 {[%emt 0:02:13]} 22. Bg3 {[%emt 0:00:14]} gxf4 {[%emt 0:02:44]} 23. Bxf4 {[%emt 0:00:19]} Rad8 {[%emt 0:00:18]} 24. Qxc3 {[%emt 0:00:38]} Nd5 {[%emt 0:00:02]} 25. Bc4 {[%emt 0:01:20]} Kh7 {[%emt 0:00:28]} 26. Bxd5 {[%emt 0:01:45]} Rxd5 {[%emt 0:00:02]} 27. Rae1 {[%emt 0:04:35]} Qd6 {[%emt 0:00:33]} 28. g4 {[%emt 0:03:41]} Bg6 {[%emt 0:00:04]} 29. Qh3 {[%emt 0:01:52]} Rdxe5 {[%emt 0:01:17]} 30. Rd1 {[%emt 0:02:47]} Qf6 {[%emt 0:01:48]} 31. Bxe5 {[%emt 0:00:06]} Rxe5 {[%emt 0:01:08]} 32. Qg3 {[%emt 0:00:28]} Qe7 {[%emt 0:01:49]} 33. h3 {[%emt 0:00:39]} Re2 {[%emt 0:00:34]} 34. Qf3 {[%emt 0:00:49]} Re4 {[%emt 0:00:55]} 35. Rd2 {[%emt 0:00:36]} Re1 {[%emt 0:01:35]} 36. Rd1 {[%emt 0:00:07]} Re2 {[%emt 0:00:35]} 37. Rd7 {[%emt 0:00:50]} Qxd7 {[%emt 0:00:22]} 38. Qxe2 {[%emt 0:00:03]} Qd4 {[%emt 0:00:25]} 39. Rd1 {[%emt 0:00:21]} Qc3 {[%emt 0:00:54]} 40. Rd7 {[%emt 0:00:00]} b6 {[%emt 0:00:00]} 41. Rxa7 {[%emt 0:19:49]} Qxh3 {[%emt 0:19:22]} 42. Rxg7+ {[%emt 0:05:25]} Kxg7 {[%emt 0:00:08]} 43. Qe5+ {[%emt 0:00:30]} Kf7 {[%emt 0:07:03]} 44. Qc7+ {[%emt 0:00:18]} Kf6 {[%emt 0:01:45]} 45. Qd8+ {[%emt 0:08:50]} Ke6 {[%emt 0:01:29]} 46. Qc8+ {[%emt 0:00:19]} Kd6 {[%emt 0:01:40]} 47. Qf8+ {[%emt 0:01:16]} Ke6 {[%emt 0:01:35]} 48. Qc8+ {[%emt 0:00:26]} Kd6 {[%emt 0:01:13]} 49. Qf8+ {[%emt 0:01:05]} Ke5 1/2-1/2

[Event "11th Arad Open 2018"]
[Site "Arad"]
[Date "2018.08.12"]
[Round "9"]
[White "Vajda, Levente"]
[Black "Balog, Imre"]
[Result "1-0"]
[ECO "A06"]
[WhiteElo "2558"]
[BlackElo "2540"]
[Annotator "ChessBase"]
[PlyCount "107"]
[EventDate "2018.08.05"]
[EventType "swiss"]
[EventCountry "ROU"]
[SourceTitle "playchess.com"]
[Source "ChessBase"]
[SourceQuality "1"]
[TimeControl "40/5400+30:1800+30"]

1. Nf3 {[%emt 0:00:00]} d5 {[%emt 0:00:10]} 2. g3 {[%emt 0:00:00]} g6 {[%emt 0:01:25]} 3. Bg2 {[%emt 0:00:00]} Bg7 {[%emt 0:00:06]} 4. c4 {[%emt 0:02:02]} d4 {[%emt 0:02:49]} 5. O-O {[%emt 0:04:37]} e5 {[%emt 0:01:37]} 6. d3 {[%emt 0:00:29]} a5 {[%emt 0:00:06]} 7. e3 {[%emt 0:00:09]} Ne7 {[%emt 0:00:31]} 8. exd4 {[%emt 0:01:33]} exd4 {[%emt 0:00:07]} 9. Bf4 {[%emt 0:00:07]} O-O {[%emt 0:05:12]} 10. Na3 {[%emt 0:00:58]} Na6 {[%emt 0:01:29]} 11. Re1 {[%emt 0:12:41]} Nc5 {[%emt 0:13:46]} 12. Nb5 {[%emt 0:05:52]} Ne6 {[%emt 0:00:29]} 13. Rxe6 {[%emt 0:01:01]} Bxe6 {[%emt 0:06:28]} 14. Nxc7 {[%emt 0:01:24]} Ra7 {[%emt 0:00:05]} 15. Nxe6 {[%emt 0:00:07]} fxe6 {[%emt 0:00:02]} 16. Qe2 {[%emt 0:02:44]} Ra6 {[%emt 0:00:45]} 17. Ng5 {[%emt 0:01:52]} e5 {[%emt 0:02:52]} 18. Re1 {[%emt 0:05:53]} Rf5 {[%emt 0:09:10]} 19. Bd2 {[%emt 0:07:46]} h6 {[%emt 0:05:23]} 20. Nf3 {[%emt 0:01:49]} Nc6 {[%emt 0:12:59]} 21. Nh4 {[%emt 0:00:37]} Rf6 {[%emt 0:00:36]} 22. Bd5+ {[%emt 0:01:06]} Kh7 {[%emt 0:03:50]} 23. Be4 {[%emt 0:05:13]} Qe8 {[%emt 0:05:18]} 24. f4 {[%emt 0:05:14]} Ne7 {[%emt 0:04:45]} 25. fxe5 {[%emt 0:01:26]} Rfe6 {[%emt 0:00:46]} 26. Nf3 {[%emt 0:02:40]} Bxe5 {[%emt 0:00:59]} 27. Qf2 {[%emt 0:05:17]} Nc6 {[%emt 0:05:16]} 28. g4 {[%emt 0:00:50]} Nd8 {[%emt 0:09:00]} 29. h4 {[%emt 0:01:50]} Bg7 {[%emt 0:05:35]} 30. Nxd4 {[%emt 0:05:17]} Bxd4 {[%emt 0:02:31]} 31. Qxd4 {[%emt 0:00:07]} Nf7 {[%emt 0:00:34]} 32. h5 {[%emt 0:01:19]} Ne5 {[%emt 0:00:45]} 33. Kg2 {[%emt 0:03:57]} Rad6 {[%emt 0:00:26]} 34. hxg6+ {[%emt 0:00:55]} Nxg6 {[%emt 0:00:17]} 35. Qe3 {[%emt 0:01:05]} Qf8 {[%emt 0:00:39]} 36. Rh1 {[%emt 0:01:03]} Qg7 {[%emt 0:00:39]} 37. Rxh6+ {[%emt 0:00:31]} Kg8 {[%emt 0:00:01]} 38. Bd5 {[%emt 0:01:51]} Qf6 {[%emt 0:00:02]} 39. Qg5 {[%emt 0:03:55]} Rxd5 {[%emt 0:00:53]} 40. Qxf6 {[%emt 0:00:00]} Rxf6 {[%emt 0:00:00]} 41. cxd5 {[%emt 0:18:57]} Rd6 {[%emt 0:15:57]} 42. g5 {[%emt 0:01:55]} Kf7 {[%emt 0:00:24]} 43. Rh7+ {[%emt 0:01:20]} Kg8 {[%emt 0:01:41]} 44. Rxb7 {[%emt 0:00:47]} Rxd5 {[%emt 0:00:07]} 45. Kf2 {[%emt 0:00:34]} Rxd3 {[%emt 0:00:10]} 46. Bxa5 {[%emt 0:00:30]} Rd5 {[%emt 0:00:01]} 47. Bc3 {[%emt 0:02:53]} Rxg5 {[%emt 0:03:00]} 48. a4 {[%emt 0:00:07]} Nf4 {[%emt 0:03:34]} 49. a5 {[%emt 0:00:42]} Rg6 {[%emt 0:00:04]} 50. Ke3 {[%emt 0:00:22]} Ng2+ {[%emt 0:03:31]} 51. Ke4 {[%emt 0:01:23]} Kf8 {[%emt 0:00:20]} 52. Rb6 {[%emt 0:01:45]} Rg4+ {[%emt 0:00:56]} 53. Kf3 {[%emt 0:00:06]} Rg5 {[%emt 0:00:02]} 54. a6 {[%emt 0:00:13]} 1-0

[Event "11th Arad Open 2018"]
[Site "Arad"]
[Date "2018.08.12"]
[Round "9"]
[White "Antal, Gergely"]
[Black "Baratosi, Daniel"]
[Result "0-1"]
[ECO "B00"]
[WhiteElo "2549"]
[BlackElo "2371"]
[Annotator "ChessBase"]
[PlyCount "82"]
[EventDate "2018.08.05"]
[EventType "swiss"]
[EventCountry "ROU"]
[SourceTitle "playchess.com"]
[Source "ChessBase"]
[SourceQuality "1"]
[TimeControl "40/5400+30:1800+30"]

1. e4 {[%emt 0:00:00]} b6 {[%emt 0:05:42]} 2. d4 {[%emt 0:00:12]} Bb7 {[%emt 0:00:07]} 3. Nc3 {[%emt 0:00:35]} e6 {[%emt 0:00:29]} 4. a3 {[%emt 0:06:36]} g6 {[%emt 0:08:53]} 5. h4 {[%emt 0:00:33]} h6 {[%emt 0:05:27]} 6. Be3 {[%emt 0:03:39]} Bg7 {[%emt 0:02:01]} 7. Qd2 {[%emt 0:00:54]} d6 {[%emt 0:06:59]} 8. Nge2 {[%emt 0:17:18]} Nd7 {[%emt 0:02:09]} 9. h5 {[%emt 0:10:00]} g5 {[%emt 0:00:25]} 10. d5 {[%emt 0:00:25]} exd5 {[%emt 0:11:41]} 11. exd5 {[%emt 0:01:22]} Ne7 {[%emt 0:00:05]} 12. Bd4 {[%emt 0:03:42]} Ne5 {[%emt 0:05:35]} 13. f4 {[%emt 0:02:47]} gxf4 {[%emt 0:00:07]} 14. Nxf4 {[%emt 0:00:08]} a6 {[%emt 0:01:20]} 15. Be2 {[%emt 0:03:55]} Qd7 {[%emt 0:07:56]} 16. O-O-O {[%emt 0:02:37]} O-O-O {[%emt 0:00:20]} 17. g4 {[%emt 0:05:14]} Rhg8 {[%emt 0:07:47]} 18. Rhg1 {[%emt 0:00:14]} Kb8 {[%emt 0:01:16]} 19. Kb1 {[%emt 0:01:48]} Bf6 {[%emt 0:08:33]} 20. Ne4 {[%emt 0:03:40]} Bh8 {[%emt 0:00:27]} 21. c4 {[%emt 0:04:41]} c5 {[%emt 0:04:58]} 22. Bc3 {[%emt 0:08:33]} Qa4 {[%emt 0:01:49]} 23. Rde1 {[%emt 0:05:32]} Bc8 {[%emt 0:12:14]} 24. Ka1 {[%emt 0:07:47]} f5 {[%emt 0:03:34]} 25. Bd1 {[%emt 0:04:30]} Qd7 {[%emt 0:00:04]} 26. gxf5 {[%emt 0:00:10]} Rxg1 {[%emt 0:00:40]} 27. Rxg1 {[%emt 0:00:02]} Qxf5 {[%emt 0:00:37]} 28. Ng3 {[%emt 0:00:38]} Qg5 {[%emt 0:00:46]} 29. Ne6 {[%emt 0:01:23]} Qxd2 {[%emt 0:00:24]} 30. Bxd2 {[%emt 0:00:02]} Rg8 {[%emt 0:00:24]} 31. Bb3 {[%emt 0:03:47]} Nf3 {[%emt 0:01:19]} 32. Bf4 {[%emt 0:01:15]} Nxg1 {[%emt 0:00:16]} 33. Bxd6+ {[%emt 0:00:01]} Ka7 {[%emt 0:00:40]} 34. Ba4 {[%emt 0:01:59]} Nf3 {[%emt 0:00:46]} 35. Ne4 {[%emt 0:00:35]} Rg1+ {[%emt 0:00:19]} 36. Ka2 {[%emt 0:00:01]} Nf5 {[%emt 0:00:38]} 37. Bf4 {[%emt 0:00:27]} Rg2 {[%emt 0:00:08]} 38. Bc1 {[%emt 0:00:07]} N3d4 {[%emt 0:01:17]} 39. Nd8 {[%emt 0:00:28]} Ne2 {[%emt 0:00:29]} 40. Bd2 {[%emt 0:00:00]} Neg3 {[%emt 0:00:00]} 41. Nc6+ {[%emt 0:16:47]} Ka8 {[%emt 0:16:08]} 0-1

[Event "11th Arad Open 2018"]
[Site "Arad"]
[Date "2018.08.12"]
[Round "9"]
[White "Georgescu, Tiberiu-Marian"]
[Black "Velickovic, Sasa"]
[Result "1-0"]
[ECO "A61"]
[WhiteElo "2495"]
[BlackElo "2290"]
[Annotator "ChessBase"]
[PlyCount "177"]
[EventDate "2018.08.05"]
[EventType "swiss"]
[EventCountry "ROU"]
[SourceTitle "playchess.com"]
[Source "ChessBase"]
[SourceQuality "1"]
[TimeControl "40/5400+30:1800+30"]

1. d4 {[%emt 0:00:00]} Nf6 {[%emt 0:00:00]} 2. c4 {[%emt 0:00:05]} c5 {[%emt 0:00:00]} 3. d5 {[%emt 0:00:08]} e6 {[%emt 0:00:00]} 4. Nc3 {[%emt 0:00:09]} exd5 {[%emt 0:00:00]} 5. cxd5 {[%emt 0:00:05]} d6 {[%emt 0:00:00]} 6. Nf3 {[%emt 0:00:13]} g6 {[%emt 0:00:00]} 7. Bf4 {[%emt 0:00:13]} Bg7 {[%emt 0:04:36]} 8. Qa4+ {[%emt 0:00:22]} Bd7 {[%emt 0:00:08]} 9. Qb3 {[%emt 0:00:03]} Qc7 {[%emt 0:00:04]} 10. e4 {[%emt 0:01:30]} O-O {[%emt 0:00:52]} 11. Nd2 {[%emt 0:01:49]} Nh5 {[%emt 0:00:49]} 12. Be3 {[%emt 0:00:25]} f5 {[%emt 0:00:07]} 13. exf5 {[%emt 0:00:54]} gxf5 {[%emt 0:01:15]} 14. Be2 {[%emt 0:02:08]} f4 {[%emt 0:00:06]} 15. Bxc5 {[%emt 0:01:13]} Qxc5 {[%emt 0:55:59]} 16. Bxh5 {[%emt 0:05:24]} Bf5 {[%emt 0:07:33]} 17. O-O {[%emt 0:03:25]} Nd7 {[%emt 0:00:57]} 18. Nde4 {[%emt 0:14:11]} Bxe4 {[%emt 0:01:55]} 19. Nxe4 {[%emt 0:00:26]} Qd4 {[%emt 0:11:03]} 20. Rfe1 {[%emt 0:04:27]} Qxb2 {[%emt 0:07:37]} 21. Qxb2 {[%emt 0:00:20]} Bxb2 {[%emt 0:00:02]} 22. Rab1 {[%emt 0:00:16]} Be5 {[%emt 0:00:07]} 23. Rxb7 {[%emt 0:06:58]} Nf6 {[%emt 0:00:29]} 24. Nxf6+ {[%emt 0:00:19]} Rxf6 {[%emt 0:00:06]} 25. Rc1 {[%emt 0:19:24]} Rff8 {[%emt 0:00:36]} 26. Rcc7 {[%emt 0:03:34]} Rfc8 {[%emt 0:00:14]} 27. Rxa7 {[%emt 0:05:27]} Rxa7 {[%emt 0:00:10]} 28. Rxc8+ {[%emt 0:00:06]} Kg7 {[%emt 0:00:03]} 29. Rc2 {[%emt 0:00:17]} Kh6 {[%emt 0:00:08]} 30. Bf3 {[%emt 0:00:21]} Kg5 {[%emt 0:00:09]} 31. g3 {[%emt 0:02:14]} Ra3 {[%emt 0:00:17]} 32. Kg2 {[%emt 0:03:03]} h6 {[%emt 0:00:18]} 33. Be2 {[%emt 0:06:07]} h5 {[%emt 0:00:50]} 34. Bc4 {[%emt 0:09:28]} h4 {[%emt 0:01:12]} 35. Bb3 {[%emt 0:02:46]} hxg3 {[%emt 0:00:27]} 36. hxg3 {[%emt 0:00:21]} fxg3 {[%emt 0:00:05]} 37. fxg3 {[%emt 0:00:04]} Ra7 {[%emt 0:00:16]} 38. Rc4 {[%emt 0:03:18]} Rg7 {[%emt 0:00:39]} 39. a4 {[%emt 0:03:44]} Kf6 {[%emt 0:00:15]} 40. g4 {[%emt 0:00:00]} Ra7 {[%emt 0:00:00]} 41. Rb4 {[%emt 0:19:57]} Bc3 {[%emt 0:19:32]} 42. Rf4+ {[%emt 0:00:17]} Kg7 {[%emt 0:00:57]} 43. Kf3 {[%emt 0:03:30]} Rb7 {[%emt 0:03:57]} 44. Bc2 {[%emt 0:00:17]} Rb2 {[%emt 0:00:26]} 45. Bf5 {[%emt 0:00:32]} Be5 {[%emt 0:01:08]} 46. Rc4 {[%emt 0:01:05]} Rb3+ {[%emt 0:01:02]} 47. Ke2 {[%emt 0:00:24]} Kf6 {[%emt 0:00:14]} 48. Bd7 {[%emt 0:00:56]} Ra3 {[%emt 0:00:13]} 49. Kd2 {[%emt 0:01:26]} Ke7 {[%emt 0:00:07]} 50. Bf5 {[%emt 0:00:17]} Kf6 {[%emt 0:00:04]} 51. Kc2 {[%emt 0:00:24]} Kg5 {[%emt 0:00:27]} 52. Bd7 {[%emt 0:00:08]} Kf6 {[%emt 0:00:40]} 53. Rb4 {[%emt 0:00:24]} Rc3+ {[%emt 0:00:53]} 54. Kd2 {[%emt 0:00:28]} Ra3 {[%emt 0:00:06]} 55. Ke2 {[%emt 0:03:55]} Ke7 {[%emt 0:00:13]} 56. Bc8 {[%emt 0:01:17]} Kf6 {[%emt 0:00:05]} 57. Rc4 {[%emt 0:00:24]} Kg5 {[%emt 0:00:08]} 58. Bd7 {[%emt 0:00:45]} Kf6 {[%emt 0:00:08]} 59. Rc8 {[%emt 0:01:07]} Ke7 {[%emt 0:00:47]} 60. Bb5 {[%emt 0:02:17]} Kf6 {[%emt 0:01:20]} 61. Rf8+ {[%emt 0:00:43]} Kg5 {[%emt 0:02:13]} 62. Bd7 {[%emt 0:00:07]} Bf6 {[%emt 0:01:39]} 63. Kd2 {[%emt 0:00:39]} Bc3+ {[%emt 0:02:40]} 64. Kc2 {[%emt 0:00:54]} Bf6 {[%emt 0:00:05]} 65. Rb8 {[%emt 0:03:07]} Rc3+ {[%emt 0:00:07]} 66. Kb1 {[%emt 0:01:22]} Ra3 {[%emt 0:00:08]} 67. Rb4 {[%emt 0:00:19]} Be5 {[%emt 0:00:43]} 68. Bb5 {[%emt 0:00:29]} Kh4 {[%emt 0:01:10]} 69. Be2 {[%emt 0:00:27]} Ra1+ {[%emt 0:00:59]} 70. Kc2 {[%emt 0:00:02]} Ra2+ {[%emt 0:00:05]} 71. Kd3 {[%emt 0:00:23]} Kg5 {[%emt 0:00:12]} 72. Bd1 {[%emt 0:00:25]} Bf4 {[%emt 0:01:17]} 73. Kc4 {[%emt 0:00:12]} Rd2 {[%emt 0:00:02]} 74. Rb1 {[%emt 0:00:22]} Be3 {[%emt 0:00:44]} 75. Bb3 {[%emt 0:00:40]} Kxg4 {[%emt 0:05:57]} 76. a5 {[%emt 0:00:10]} Kf4 {[%emt 0:00:59]} 77. a6 {[%emt 0:00:35]} Rd4+ {[%emt 0:00:18]} 78. Kb5 {[%emt 0:00:18]} Rd3 {[%emt 0:00:03]} 79. Kc6 {[%emt 0:01:09]} Ke5 {[%emt 0:00:08]} 80. Kb7 {[%emt 0:00:17]} Bc5 {[%emt 0:00:50]} 81. a7 {[%emt 0:01:37]} Bxa7 {[%emt 0:00:06]} 82. Kxa7 {[%emt 0:00:01]} Rxb3 {[%emt 0:00:06]} 83. Rxb3 {[%emt 0:00:01]} Kxd5 {[%emt 0:00:05]} 84. Rb1 {[%emt 0:01:23]} Kc4 {[%emt 0:00:55]} 85. Rc1+ {[%emt 0:00:04]} Kb4 {[%emt 0:00:10]} 86. Kb6 {[%emt 0:00:43]} d5 {[%emt 0:00:04]} 87. Kc6 {[%emt 0:00:04]} d4 {[%emt 0:00:00]} 88. Kd5 {[%emt 0:00:06]} d3 {[%emt 0:00:05]} 89. Ke4 1-0